fUST/lending_fUST_20240802
["ID","MTS","AMOUNT","RATE_DAILY","PERIOD"]
[333829721,1722535851684,-500.0,0.00015342,2]
[333829722,1722535851693,-500.0,0.00015342,2]
[333829723,1722535851703,-1329.86,0.00015342,2]
[333829724,1722535851711,-500.0,0.00015342,2]
[333829725,1722535851721,-963.1,0.00015342,2]
[333829726,1722535851731,-500.0,0.00015342,2]
[333829727,1722535851741,-534.96,0.00015342,2]
[333829728,1722535851750,-500.0,0.00015342,2]
[333829729,1722535851760,-500.0,0.00015342,2]
[333829730,1722535851770,-500.0,0.00015342,2]
[333829731,1722535851780,-500.0,0.00015342,2]
[333829732,1722535851790,-500.0,0.00015342,2]
[333829733,1722535851800,-500.0,0.00015342,2]
[333829734,1722535851809,-500.0,0.00015342,2]
[333829735,1722535851819,-844.88,0.00015342,2]
[333829736,1722535851829,-826.2,0.00015342,2]
[333829737,1722535851839,-500.0,0.00015342,2]
[333829738,1722535851848,-500.0,0.00015342,2]
[333829739,1722535851857,-579.54,0.00015342,2]
[333829740,1722535851867,-500.0,0.00015342,2]
[333829741,1722535851882,-1000.0,0.00015437,2]
[333829742,1722535851891,-1000.0,0.00015445,2]
[333829743,1722535851901,-1000.0,0.00015455,2]
[333829744,1722535851911,-1000.0,0.00015457,2]
[333829745,1722535851920,-1000.0,0.00015463,2]
[333829746,1722535851929,-300.0,0.00015463,2]
[333829747,1722535851939,-1000.0,0.00015481,2]
[333829748,1722535851949,-1091.2604251,0.00015485,2]
[333829749,1722535851959,-1000.0,0.0001552,2]
[333829750,1722535851969,-1000.0,0.00015534,2]
[333829751,1722535851979,-155.0,0.0001554,2]
[333829752,1722535851988,-1175.69965129,0.00015606,2]
[333829753,1722535851998,-191.43645482,0.00015609,2]
[333829754,1722535852007,-1000.0,0.00015615,2]
[333829755,1722535852017,-500.0,0.00015616,2]
[333829756,1722535852027,-500.0,0.00015616,2]
[333829757,1722535852037,-500.0,0.00015616,2]
[333829758,1722535852046,-500.0,0.00015616,2]
[333829759,1722535852056,-502.97559156,0.00015616,2]
[333829760,1722535852065,-500.0,0.00015616,2]
[333829761,1722535852075,-500.0,0.00015616,2]
[333829762,1722535852084,-1025.63,0.00015616,2]
[333829763,1722535852094,-1387.27,0.00015616,2]
[333829764,1722535852104,-664.77,0.00015616,2]
[333829765,1722535852113,-19.75284115,0.00015616,2]
[333829791,1722536277464,160.12324259,9.999e-05,2]
[333829827,1722536393733,259.32164701,9.999e-05,2]
[333829828,1722536421311,256.64294795,9.999e-05,2]
[333829838,1722536499460,664.0681359,9.999e-05,2]
[333829853,1722536733191,-300.0,0.00011604,2]
[333829854,1722536733217,-300.0,0.00011604,2]
[333829855,1722536733241,-1523.11536315,0.00011605,2]
[333829861,1722536825144,-166.6434,0.00011432,2]
[333829862,1722536825168,-232.43634984,0.00011604,2]
[333829863,1722536826101,-67.56365016,0.00011604,2]
[333829864,1722536826125,-4570.00960207,0.00011605,2]
[333829865,1722536846121,-2540.3303545,0.00011605,2]
[333829866,1722536848221,-2827.7938687,0.00011605,2]
[333829867,1722536850092,-2663.52631819,0.00011605,2]
[333829868,1722536854231,-2379.79937595,0.00011605,2]
[333829872,1722536926200,333.8085813,0.0001,10]
[333829874,1722536948098,-3723.82073596,0.00011505,2]
[333829875,1722536948122,-257.0,0.00011604,2]
[333829876,1722536948145,-8385.42511744,0.00011605,2]
[333829877,1722536948166,-189.1530688,0.00011667,2]
[333829878,1722536948189,-2237.21881998,0.00011704,2]
[333829879,1722536948226,-963.01422182,0.00011704,2]
[333829880,1722536948248,-160.10564,0.00012194,2]
[333829881,1722536948272,-160.10564,0.00012229,2]
[333829882,1722536948296,-160.10564,0.00012264,2]
[333829883,1722536948320,-160.10564,0.000123,2]
[333829884,1722536954108,-160.10564,0.00012335,2]
[333829885,1722536954134,-160.10564,0.0001237,2]
[333829886,1722536954158,-160.10564,0.00012405,2]
[333829887,1722536954183,-160.10564,0.00012441,2]
[333829888,1722536954206,-160.10564,0.00012476,2]
[333829889,1722536954229,-160.10564,0.00012511,2]
[333829890,1722536954257,-160.10564,0.00012547,2]
[333829891,1722536960127,-160.10564,0.00012582,2]
[333829892,1722536960152,-160.10564,0.00012617,2]
[333829893,1722536960176,-160.10564,0.00012652,2]
[333829894,1722536960199,-160.10564,0.00012688,2]
[333829895,1722536960223,-160.10564,0.00012723,2]
[333829896,1722536960246,-160.10564,0.00012758,2]
[333829897,1722536960272,-160.10564,0.00012794,2]
[333829898,1722536960451,-160.10564,0.00012829,2]
[333829899,1722536960474,-168.123212,0.00012986,2]
[333829900,1722536987798,168.123212,0.00012986,2]
[333829910,1722537005749,1000.0,0.00013,13]
[333829944,1722537032056,1000.0,0.00013,13]
[333829946,1722537032382,-3018.62612076,0.00013588,2]
[333829947,1722537032393,-220.9252758,0.00013598,2]
[333829949,1722537032403,-2230.23179368,0.00013655,2]
[333829951,1722537032414,-1127.26429055,0.00013655,2]
[333830036,1722537038389,-2688.95962099,0.00013655,2]
[333830039,1722537038407,-727.7794491,0.00013687,2]
[333830041,1722537038418,-20007.1931339,0.00013688,2]
[333830043,1722537038428,-10003.596567,0.00013689,2]
[333830045,1722537038438,-500.0,0.00013697,2]
[333830046,1722537038448,-500.0,0.00013698,2]
[333830048,1722537038458,-500.0,0.00013698,2]
[333830050,1722537038468,-523.22272385,0.00013698,2]
[333830052,1722537038477,-500.0,0.00013698,2]
[333830054,1722537038487,-504.26309056,0.00013698,2]
[333830056,1722537038496,-500.0,0.00013698,2]
[333830058,1722537038506,-500.0,0.00013698,2]
[333830059,1722537038516,-500.0,0.00013698,2]
[333830061,1722537038526,-271.86281851,0.00013698,2]
[333830063,1722537038536,-500.0,0.00013698,2]
[333830065,1722537038546,-500.0,0.00013698,2]
[333830067,1722537038555,-500.0,0.00013698,2]
[333830068,1722537038565,-423.09693936,0.00013698,2]
[333830070,1722537038574,-500.0,0.00013698,2]
[333830072,1722537038584,-500.0,0.00013698,2]
[333830074,1722537038594,-506.40701166,0.00013698,2]
[333830075,1722537038604,-500.0,0.00013698,2]
[333830076,1722537038614,-500.0,0.00013698,2]
[333830077,1722537038624,-500.0,0.00013698,2]
[333830078,1722537038634,-500.0,0.00013698,2]
[333830079,1722537038644,-500.0,0.00013698,2]
[333830080,1722537038654,-500.0,0.00013698,2]
[333830081,1722537038664,-500.0,0.00013698,2]
[333830082,1722537038673,-392.85498164,0.00013698,2]
[333830083,1722537038683,-500.0,0.00013698,2]
[333830084,1722537038692,-500.0,0.00013698,2]
[333830085,1722537038703,-500.0,0.00013698,2]
[333830086,1722537038715,-184.80927451,0.00013698,2]
[333830087,1722537038726,-510.89486563,0.00013698,2]
[333830088,1722537038736,-500.0,0.00013698,2]
[333830089,1722537038746,-500.0,0.00013698,2]
[333830090,1722537038756,-500.0,0.00013698,2]
[333830091,1722537038766,-500.0,0.00013698,2]
[333830092,1722537038776,-500.0,0.00013698,2]
[333830093,1722537038785,-512.27579471,0.00013698,2]
[333830094,1722537038795,-500.0,0.00013698,2]
[333830095,1722537038804,-500.0,0.00013698,2]
[333830096,1722537038814,-500.0,0.00013698,2]
[333830097,1722537038823,-500.0,0.00013698,2]
[333830098,1722537038833,-500.0,0.00013698,2]
[333830099,1722537038842,-500.0,0.00013698,2]
[333830100,1722537038852,-500.0,0.00013698,2]
[333830101,1722537038862,-241.26826775,0.00013698,2]
[333830102,1722537038873,-500.0,0.00013698,2]
[333830103,1722537038883,-500.0,0.00013698,2]
[333830104,1722537038902,-500.0,0.00013698,2]
[333830105,1722537038917,-500.0,0.00013698,2]
[333830106,1722537038927,-500.0,0.00013698,2]
[333830107,1722537038937,-500.0,0.00013698,2]
[333830108,1722537038948,-599.59,0.00013698,2]
[333830109,1722537038958,-500.0,0.00013698,2]
[333830110,1722537038968,-504.0877914,0.00013698,2]
[333830111,1722537038979,-500.0,0.00013698,2]
[333830112,1722537038989,-500.0,0.00013698,2]
[333830113,1722537039000,-500.0,0.00013698,2]
[333830114,1722537039010,-500.0,0.00013698,2]
[333830115,1722537039019,-500.0,0.00013698,2]
[333830116,1722537039030,-500.0,0.00013698,2]
[333830117,1722537039041,-500.0,0.00013698,2]
[333830118,1722537039051,-624.41,0.00013698,2]
[333830119,1722537039062,-500.0,0.00013698,2]
[333830120,1722537039072,-500.0,0.00013698,2]
[333830121,1722537039081,-500.0,0.00013698,2]
[333830122,1722537039091,-500.0,0.00013698,2]
[333830123,1722537039102,-500.0,0.00013698,2]
[333830124,1722537039113,-500.0,0.00013698,2]
[333830125,1722537039125,-500.0,0.00013698,2]
[333830126,1722537039136,-500.0,0.00013698,2]
[333830127,1722537039146,-528.65684991,0.00013698,2]
[333830128,1722537039156,-500.0,0.00013698,2]
[333830129,1722537039166,-257.77649434,0.00013698,2]
[333830130,1722537039176,-500.0,0.00013698,2]
[333830131,1722537039188,-500.0,0.00013698,2]
[333830132,1722537039198,-500.0,0.00013698,2]
[333830133,1722537039209,-500.0,0.00013698,2]
[333830134,1722537039218,-500.0,0.00013698,2]
[333830135,1722537039229,-500.0,0.00013698,2]
[333830136,1722537039239,-500.0,0.00013698,2]
[333830137,1722537039249,-188.66237129,0.00013698,2]
[333830138,1722537039259,-153.28705749,0.00013698,2]
[333830139,1722537039268,-458.0,0.00013698,2]
[333830140,1722537039278,-500.0,0.00013698,2]
[333830141,1722537039287,-500.0,0.00013698,2]
[333830142,1722537039297,-606.42629643,0.00013698,2]
[333830143,1722537039307,-196.456019,0.00013698,2]
[333830180,1722537040384,-303.543981,0.00013698,2]
[333830181,1722537040394,-500.0,0.00013698,2]
[333830182,1722537040404,-500.0,0.00013698,2]
[333830183,1722537040413,-500.0,0.00013698,2]
[333830185,1722537040422,-500.0,0.00013698,2]
[333830187,1722537040433,-500.0,0.00013698,2]
[333830188,1722537040443,-500.0,0.00013698,2]
[333830189,1722537040452,-500.0,0.00013698,2]
[333830190,1722537040461,-500.0,0.00013698,2]
[333830191,1722537040471,-500.0,0.00013698,2]
[333830192,1722537040480,-500.0,0.00013698,2]
[333830193,1722537040490,-500.0,0.00013698,2]
[333830194,1722537040499,-277.77838188,0.00013698,2]
[333830195,1722537040509,-500.0,0.00013698,2]
[333830196,1722537040520,-501.36699702,0.00013698,2]
[333830197,1722537040531,-500.0,0.00013698,2]
[333830198,1722537040540,-500.0,0.00013698,2]
[333830199,1722537040549,-500.0,0.00013698,2]
[333830200,1722537040560,-500.0,0.00013698,2]
[333830201,1722537040570,-500.0,0.00013698,2]
[333830202,1722537040579,-500.0,0.00013698,2]
[333830203,1722537040589,-500.0,0.00013698,2]
[333830204,1722537040598,-500.0,0.00013698,2]
[333830205,1722537040609,-476.45,0.00013698,2]
[333830206,1722537040618,-500.0,0.00013698,2]
[333830207,1722537040631,-500.0,0.00013698,2]
[333830208,1722537040641,-500.0,0.00013698,2]
[333830209,1722537040651,-500.0,0.00013698,2]
[333830210,1722537040661,-500.0,0.00013698,2]
[333830211,1722537040671,-500.0,0.00013698,2]
[333830212,1722537040681,-500.0,0.00013698,2]
[333830213,1722537040690,-500.0,0.00013698,2]
[333830214,1722537040700,-500.0,0.00013698,2]
[333830215,1722537040710,-696.03,0.00013698,2]
[333830216,1722537040720,-500.0,0.00013698,2]
[333830217,1722537040729,-500.0,0.00013698,2]
[333830218,1722537040739,-500.0,0.00013698,2]
[333830219,1722537040748,-500.0,0.00013698,2]
[333830220,1722537040758,-500.0,0.00013698,2]
[333830221,1722537040768,-500.0,0.00013698,2]
[333830222,1722537040778,-500.0,0.00013698,2]
[333830223,1722537040788,-500.0,0.00013698,2]
[333830224,1722537040799,-500.0,0.00013698,2]
[333830225,1722537040808,-500.0,0.00013698,2]
[333830226,1722537040818,-524.57847324,0.00013698,2]
[333830227,1722537040828,-500.0,0.00013698,2]
[333830228,1722537040837,-500.0,0.00013698,2]
[333830229,1722537040847,-518.17602593,0.00013698,2]
[333830230,1722537040857,-500.0,0.00013698,2]
[333830231,1722537040869,-500.0,0.00013698,2]
[333830232,1722537040878,-1279.62,0.00013698,2]
[333830233,1722537040888,-500.0,0.00013698,2]
[333830234,1722537040899,-500.0,0.00013698,2]
[333830235,1722537040909,-500.0,0.00013698,2]
[333830236,1722537040919,-500.0,0.00013698,2]
[333830237,1722537040929,-1447.93,0.00013698,2]
[333830238,1722537040939,-500.0,0.00013698,2]
[333830239,1722537040952,-500.0,0.00013698,2]
[333830240,1722537040963,-500.0,0.00013698,2]
[333830241,1722537040973,-500.0,0.00013698,2]
[333830242,1722537040983,-541.77194434,0.00013698,2]
[333830243,1722537040993,-503.83,0.00013698,2]
[333830244,1722537041003,-500.0,0.00013698,2]
[333830245,1722537041013,-500.0,0.00013698,2]
[333830246,1722537041023,-500.0,0.00013698,2]
[333830247,1722537041033,-500.0,0.00013698,2]
[333830248,1722537041043,-500.0,0.00013698,2]
[333830249,1722537041053,-503.62001656,0.00013698,2]
[333830250,1722537041064,-500.0,0.00013698,2]
[333830251,1722537041073,-500.0,0.00013698,2]
[333830252,1722537041085,-500.0,0.00013698,2]
[333830253,1722537041095,-500.0,0.00013698,2]
[333830254,1722537041105,-502.23490079,0.00013698,2]
[333830255,1722537041117,-509.65691155,0.00013698,2]
[333830256,1722537041127,-500.0,0.00013698,2]
[333830257,1722537041137,-500.0,0.00013698,2]
[333830258,1722537041147,-500.0,0.00013698,2]
[333830259,1722537041156,-554.23,0.00013698,2]
[333830260,1722537041165,-500.0,0.00013698,2]
[333830261,1722537041176,-500.0,0.00013698,2]
[333830262,1722537041186,-500.0,0.00013698,2]
[333830263,1722537041196,-500.0,0.00013698,2]
[333830264,1722537041206,-361.88733057,0.00013698,2]
[333830265,1722537041216,-500.0,0.00013698,2]
[333830266,1722537041225,-504.85242468,0.00013698,2]
[333830267,1722537041235,-500.0,0.00013698,2]
[333830268,1722537041245,-500.0,0.00013698,2]
[333830269,1722537041255,-500.0,0.00013698,2]
[333830270,1722537041264,-500.0,0.00013698,2]
[333830271,1722537041274,-500.0,0.00013698,2]
[333830272,1722537041284,-500.0,0.00013698,2]
[333830273,1722537041294,-500.0,0.00013698,2]
[333830274,1722537041303,-500.0,0.00013698,2]
[333830275,1722537041313,-500.0,0.00013698,2]
[333830276,1722537041323,-500.0,0.00013698,2]
[333830277,1722537041332,-1186.86,0.00013698,2]
[333830278,1722537041343,-500.0,0.00013698,2]
[333830279,1722537041352,-500.0,0.00013698,2]
[333830280,1722537041362,-500.0,0.00013698,2]
[333830281,1722537041371,-500.0,0.00013698,2]
[333830282,1722537041381,-500.0,0.00013698,2]
[333830283,1722537041390,-722.33,0.00013698,2]
[333830284,1722537041400,-510.98180364,0.00013698,2]
[333830285,1722537041410,-500.0,0.00013698,2]
[333830286,1722537041419,-500.0,0.00013698,2]
[333830287,1722537041429,-405.44454401,0.00013698,2]
[333830288,1722537041443,-94.55545599,0.00013698,2]
[333830289,1722537041453,-500.0,0.00013698,2]
[333830290,1722537041462,-500.0,0.00013698,2]
[333830291,1722537041472,-354.36871326,0.00013698,2]
[333830292,1722537041482,-500.0,0.00013698,2]
[333830293,1722537041491,-500.0,0.00013698,2]
[333830294,1722537041501,-500.0,0.00013698,2]
[333830295,1722537041510,-500.0,0.00013698,2]
[333830296,1722537041520,-500.0,0.00013698,2]
[333830297,1722537041530,-500.0,0.00013698,2]
[333830298,1722537041541,-500.0,0.00013698,2]
[333830299,1722537041551,-502.21731606,0.00013698,2]
[333830300,1722537041561,-576.59,0.00013698,2]
[333830301,1722537041571,-500.0,0.00013698,2]
[333830302,1722537041582,-500.0,0.00013698,2]
[333830303,1722537041592,-500.0,0.00013698,2]
[333830304,1722537041602,-500.0,0.00013698,2]
[333830305,1722537041612,-500.0,0.00013698,2]
[333830306,1722537041622,-500.0,0.00013698,2]
[333830307,1722537041632,-500.0,0.00013698,2]
[333830308,1722537041642,-500.0,0.00013698,2]
[333830309,1722537041651,-500.0,0.00013698,2]
[333830310,1722537041766,-500.0,0.00013698,2]
[333830311,1722537041776,-500.0,0.00013698,2]
[333830312,1722537041787,-500.0,0.00013698,2]
[333830313,1722537041797,-500.0,0.00013698,2]
[333830314,1722537041808,-500.0,0.00013698,2]
[333830315,1722537041818,-500.0,0.00013698,2]
[333830316,1722537041828,-500.0,0.00013698,2]
[333830317,1722537041839,-611.65,0.00013698,2]
[333830318,1722537041850,-500.0,0.00013698,2]
[333830319,1722537041860,-626.89,0.00013698,2]
[333830320,1722537041873,-1704.74,0.00013698,2]
[333830321,1722537041883,-619.29,0.00013698,2]
[333830322,1722537041893,-500.0,0.00013698,2]
[333830323,1722537041903,-404.7985147,0.00013698,2]
[333830324,1722537041969,-95.2014853,0.00013698,2]
[333830325,1722537041980,-500.0,0.00013698,2]
[333830326,1722537041991,-370.7985147,0.00013698,2]
[333830327,1722537042004,-129.2014853,0.00013698,2]
[333830328,1722537042015,-500.0,0.00013698,2]
[333830329,1722537042025,-500.0,0.00013698,2]
[333830330,1722537042035,-500.0,0.00013698,2]
[333830331,1722537042046,-500.94193617,0.00013698,2]
[333830332,1722537042056,-500.0,0.00013698,2]
[333830333,1722537042067,-500.0,0.00013698,2]
[333830334,1722537042078,-501.96834562,0.00013698,2]
[333830335,1722537042088,-500.0,0.00013698,2]
[333830336,1722537042098,-397.74663942,0.00013698,2]
[333830354,1722537043276,-684.89336058,0.00013698,2]
[333830356,1722537043286,-40.94651742,0.00013698,2]
[333830358,1722537043298,-459.05348258,0.00013698,2]
[333830360,1722537043308,-500.0,0.00013698,2]
[333830362,1722537043317,-500.0,0.00013698,2]
[333830364,1722537043326,-500.0,0.00013698,2]
[333830366,1722537043336,-500.0,0.00013698,2]
[333830367,1722537043345,-500.0,0.00013698,2]
[333830368,1722537043354,-500.0,0.00013698,2]
[333830369,1722537043364,-29.90349699,0.00013699,2]
[333830370,1722537043375,-569.9649087,0.00013699,2]
[333830497,1722537046675,-483.25706206,0.00013698,2]
[333830499,1722537046685,-412.11668291,0.00013698,2]
[333830501,1722537046698,-87.88331709,0.00013698,2]
[333830502,1722537046708,-500.0,0.00013698,2]
[333830503,1722537046718,-341.37717175,0.00013699,2]
[333830504,1722537046765,-295.94736869,0.00013699,2]
[333830505,1722537046777,-55427.01260237,0.00013699,2]
[333830506,1722537046786,-355.0,0.00013699,2]
[333830507,1722537046796,-1556.015681,0.00013699,2]
[333830508,1722537046805,-3000.0,0.00013699,2]
[333830509,1722537046815,-10003.596567,0.00013952,2]
[333830510,1722537046824,-500.0,0.00013972,2]
[333830511,1722537046833,-500.0,0.00013972,2]
[333830512,1722537046842,-500.0,0.00013972,2]
[333830513,1722537046852,-500.0,0.00013972,2]
[333830514,1722537046862,-500.0,0.00013972,2]
[333830515,1722537046873,-500.0,0.00013972,2]
[333830516,1722537046895,-500.0,0.00013972,2]
[333830517,1722537046906,-500.0,0.00013972,2]
[333830518,1722537046915,-500.0,0.00013972,2]
[333830519,1722537046925,-500.0,0.00013972,2]
[333830520,1722537046935,-500.0,0.00013972,2]
[333830521,1722537046944,-500.0,0.00013972,2]
[333830522,1722537046957,-500.0,0.00013972,2]
[333830523,1722537046967,-226.58,0.00013972,2]
[333830524,1722537046976,-500.0,0.00013972,2]
[333830525,1722537046987,-500.0,0.00013972,2]
[333830526,1722537046996,-500.0,0.00013972,2]
[333830527,1722537047005,-500.0,0.00013972,2]
[333830528,1722537047015,-500.0,0.00013972,2]
[333830529,1722537047024,-500.0,0.00013972,2]
[333830530,1722537047034,-500.0,0.00013972,2]
[333830531,1722537047044,-500.0,0.00013972,2]
[333830532,1722537047053,-500.0,0.00013972,2]
[333830533,1722537047063,-500.0,0.00013972,2]
[333830534,1722537047073,-500.0,0.00013972,2]
[333830535,1722537047082,-696.03,0.00013972,2]
[333830536,1722537047092,-500.0,0.00013972,2]
[333830537,1722537047101,-500.0,0.00013972,2]
[333830538,1722537047111,-500.0,0.00013972,2]
[333830539,1722537047120,-500.0,0.00013972,2]
[333830540,1722537047129,-1279.62,0.00013972,2]
[333830541,1722537047138,-500.0,0.00013972,2]
[333830542,1722537047147,-500.0,0.00013972,2]
[333830543,1722537047157,-1447.93,0.00013972,2]
[333830544,1722537047167,-500.0,0.00013972,2]
[333830545,1722537047176,-500.0,0.00013972,2]
[333830546,1722537047186,-637.27,0.00013972,2]
[333830547,1722537047196,-503.83,0.00013972,2]
[333830548,1722537047205,-500.0,0.00013972,2]
[333830549,1722537047215,-500.0,0.00013972,2]
[333830550,1722537047225,-500.0,0.00013972,2]
[333830551,1722537047234,-500.0,0.00013972,2]
[333830552,1722537047244,-500.0,0.00013972,2]
[333830553,1722537047254,-554.23,0.00013972,2]
[333830554,1722537047264,-500.0,0.00013972,2]
[333830555,1722537047274,-500.0,0.00013972,2]
[333830556,1722537047283,-500.0,0.00013972,2]
[333830557,1722537047293,-500.0,0.00013972,2]
[333830558,1722537047303,-500.0,0.00013972,2]
[333830559,1722537047313,-500.0,0.00013972,2]
[333830560,1722537047323,-500.0,0.00013972,2]
[333830561,1722537047333,-500.0,0.00013972,2]
[333830562,1722537047343,-500.0,0.00013972,2]
[333830563,1722537047353,-1186.86,0.00013972,2]
[333830564,1722537047363,-500.0,0.00013972,2]
[333830565,1722537047372,-500.0,0.00013972,2]
[333830566,1722537047389,-500.0,0.00013972,2]
[333830567,1722537047399,-722.33,0.00013972,2]
[333830568,1722537047412,-500.0,0.00013972,2]
[333830569,1722537047422,-500.0,0.00013972,2]
[333830570,1722537047431,-500.0,0.00013972,2]
[333830571,1722537047440,-353.9037258,0.00013972,2]
[333830572,1722537047449,-500.0,0.00013972,2]
[333830573,1722537047458,-500.0,0.00013972,2]
[333830574,1722537047467,-500.0,0.00013972,2]
[333830575,1722537047477,-224.30701069,0.00013972,2]
[333830576,1722537047486,-500.0,0.00013972,2]
[333830577,1722537047495,-500.0,0.00013972,2]
[333830578,1722537047506,-463.25808046,0.00013972,2]
[333830579,1722537047515,-500.0,0.00013972,2]
[333830580,1722537047524,-500.0,0.00013972,2]
[333830581,1722537047534,-500.0,0.00013972,2]
[333830582,1722537047543,-626.89,0.00013972,2]
[333830583,1722537047552,-1704.74,0.00013972,2]
[333830584,1722537047562,-619.29,0.00013972,2]
[333830585,1722537047571,-500.0,0.00013972,2]
[333830586,1722537047581,-500.0,0.00013972,2]
[333830587,1722537047591,-500.0,0.00013972,2]
[333830588,1722537047602,-500.0,0.00013972,2]
[333830589,1722537047613,-500.0,0.00013972,2]
[333830590,1722537047623,-1082.64,0.00013972,2]
[333830591,1722537047641,-500.0,0.00013972,2]
[333830592,1722537047652,-500.0,0.00013972,2]
[333830593,1722537047662,-180.47,0.00013972,2]
[333830594,1722537047671,-394.9759661,0.00013972,2]
[333830595,1722537047682,-150.112233,0.00014,2]
[333830596,1722537047691,-1000.0,0.00014,14]
[333830597,1722537047701,-220.92527576,0.00014098,2]
[333830598,1722537047710,-2000.0,0.000142,2]
[333830599,1722537047720,-10003.596567,0.00014236,2]
[333830600,1722537047731,-500.0,0.00014246,2]
[333830601,1722537047740,-500.0,0.00014246,2]
[333830602,1722537047750,-619.69,0.00014246,2]
[333830603,1722537047760,-249.06421131,0.00014246,2]
[333830604,1722537047769,-500.0,0.00014246,2]
[333830605,1722537047779,-500.0,0.00014246,2]
[333830606,1722537047788,-500.0,0.00014246,2]
[333830607,1722537047798,-506.65289107,0.00014246,2]
[333830608,1722537047809,-500.0,0.00014246,2]
[333830609,1722537047819,-500.0,0.00014246,2]
[333830610,1722537047829,-500.0,0.00014246,2]
[333830611,1722537047840,-500.0,0.00014246,2]
[333830612,1722537047850,-500.0,0.00014246,2]
[333830613,1722537047863,-297.19223732,0.00014246,2]
[333830614,1722537047873,-500.0,0.00014246,2]
[333830615,1722537047890,-500.0,0.00014246,2]
[333830616,1722537047901,-500.0,0.00014246,2]
[333830617,1722537047911,-500.0,0.00014246,2]
[333830618,1722537047921,-696.03,0.00014246,2]
[333830619,1722537047930,-500.0,0.00014246,2]
[333830620,1722537047941,-500.0,0.00014246,2]
[333830621,1722537047954,-500.0,0.00014246,2]
[333830622,1722537047963,-1279.62,0.00014246,2]
[333830623,1722537047973,-1447.93,0.00014246,2]
[333830624,1722537047983,-500.0,0.00014246,2]
[333830625,1722537047993,-503.83,0.00014246,2]
[333830626,1722537048002,-399.42227963,0.00014246,2]
[333830627,1722537048109,-500.0,0.00014246,2]
[333830628,1722537048121,-554.23,0.00014246,2]
[333830629,1722537048139,-500.0,0.00014246,2]
[333830630,1722537048151,-500.0,0.00014246,2]
[333830631,1722537048160,-500.0,0.00014246,2]
[333830632,1722537048169,-500.0,0.00014246,2]
[333830633,1722537048178,-1186.86,0.00014246,2]
[333830634,1722537048188,-500.0,0.00014246,2]
[333830635,1722537048197,-722.33,0.00014246,2]
[333830636,1722537048207,-500.0,0.00014246,2]
[333830637,1722537048217,-392.66019088,0.00014246,2]
[333830638,1722537048226,-500.0,0.00014246,2]
[333830639,1722537048235,-500.0,0.00014246,2]
[333830640,1722537048244,-500.0,0.00014246,2]
[333830641,1722537048254,-500.0,0.00014246,2]
[333830642,1722537048263,-500.0,0.00014246,2]
[333830643,1722537048272,-500.0,0.00014246,2]
[333830644,1722537048281,-626.89,0.00014246,2]
[333830645,1722537048290,-1704.74,0.00014246,2]
[333830646,1722537048300,-619.29,0.00014246,2]
[333830647,1722537048310,-329.31385642,0.00014246,2]
[333830648,1722537048319,-500.0,0.00014246,2]